Cogmind - Beta 17.1 @@@ ROGUE MODE // 2026.08.30 @ 21:42:02 Player: SnailSD Result: Destroyed by B-86 Titan with Hardcell Cannon Performance ------------- Evolutions (6) 3000 Regions Visited (15) 3000 Robots Destroyed (107) 535 Value Destroyed (3078) 3078 Prototype IDs (28) 560 Alien Tech Used (0) 0 Bonus (1141) 1141 TOTAL SCORE: 11314 Bonus ------- High Alert Combat Kills 273 Follower Combat Kills 268 Aligned with FarCom 300 Met Imprinter 300 Cogmind --------- Core Integrity 0/1150 Matter 225/300 Energy 369/370 System Corruption 7% Temperature Cool (3) Movement Flying (34) Location -4/Extension Parts ------- > --- POWER (2) -------- Angular Momentum Engine Light Antimatter Reactor > --- PROPULSION (7) --- Nuclear Pulse Array Nuclear Pulse Array Nuclear Pulse Array > --- UTILITY (8) ------ Makeshift Hacking Suite Makeshift Hacking Suite Improved Hacking Suite > --- WEAPON (2) ------- Ripper Phasing Sabre > --- INVENTORY (5) ---- Field Propulsion Drive Light Cannon Peak State ------------ > --- POWER ------------ Angular Momentum Engine Light Antimatter Reactor > --- PROPULSION ------- Field Propulsion Drive Nuclear Pulse Array Nuclear Pulse Array Nuclear Pulse Array > --- UTILITY ---------- Makeshift Hacking Suite Makeshift Hacking Suite Improved Hacking Suite > --- WEAPON ----------- Ripper Phasing Sabre > --- INVENTORY -------- Field Propulsion Drive Light Cannon [Rating: 77] Favorites ----------- Power Deuterium Engine Engine Deuterium Engine Power Core Light Nuclear Core Reactor Light Antimatter Reactor Propulsion Compact Wheel Treads Light Treads Wheel Compact Wheel Hover Unit Cooled Airjet Flight Unit Field Propulsion Drive Utility Huge Storage Unit Device Improved Heat Sink Storage Huge Storage Unit Processor Target Analyzer Hackware Makeshift Hacking Suite Protection Hardened Light Armor Plating Weapon Light Cannon Energy Gun Beam Rifle Energy Cannon Firepult Ballistic Gun Assault Rifle Ballistic Cannon Light Cannon Launcher Grenade Launcher Impact Weapon Flail Slashing Weapon Greatsword Build | -11 -10 -10 -9 -9 -9 -8 -8 -7 -6 -6 -6 -5 -5 -4 -4 ------- Run | Yrd Mat Min Mat Min Exi Min Mat Fac Fac Low Zio Pro Fac Fac Ext Slots Evolved 12 | . . . 2 . . . 2 2 2 . . . 2 2 . Power 1 | . . . . . . . . 1 . . . . . . . Propulsion 5 | . . . 2 . . . . . 2 . . . 1 . . Utility 6 | . . . . . . . 2 1 . . . . 1 2 . Weapon . | . . . . . . . . . . . . . . . . Parts Attached 98 | 7 5 . 18 4 1 . 8 21 14 1 1 . 4 11 3 Power 12 | 1 . . 1 1 . . 1 3 3 . . . . 1 1 Engine 9 | 1 . . 1 1 . . 1 3 2 . . . . . . Core 2 | . . . . . . . . . 1 . . . . 1 . Reactor 1 | . . . . . . . . . . . . . . . 1 Propulsion 44 | 2 2 . 7 2 . . 2 13 7 . . . . 9 . Treads 8 | 2 . . . . . . . 6 . . . . . . . Leg . | . . . . . . . . . . . . . . . . Wheel 16 | . 2 . 6 2 . . 1 5 . . . . . . . Hover 8 | . . . . . . . . 1 7 . . . . . . Flight 12 | . . . 1 . . . 1 1 . . . . . 9 . Utility 25 | 2 1 . 4 . . . 5 5 2 1 1 . 3 1 . Device 11 | 1 . . 1 . . . 5 3 . 1 . . . . . Storage 5 | 1 1 . 2 . . . . . 1 . . . . . . Processor 2 | . . . . . . . . 2 . . . . . . . Hackware 6 | . . . . . . . . . 1 . 1 . 3 1 . Protection 1 | . . . 1 . . . . . . . . . . . . Artifact . | . . . . . . . . . . . . . . . . Weapon 17 | 2 2 . 6 1 1 . . . 2 . . . 1 . 2 Energy Gun 2 | . . . 2 . . . . . . . . . . . . Energy Cannon 3 | . 1 . . 1 1 . . . . . . . . . . Ballistic Gun 4 | 2 . . 2 . . . . . . . . . . . . Ballistic Cannon 2 | . 1 . 1 . . . . . . . . . . . . Launcher 2 | . . . 1 . . . . . . . . . 1 . . Special Weapon . | . . . . . . . . . . . . . . . . Impact Weapon 1 | . . . . . . . . . 1 . . . . . . Slashing Weapon 3 | . . . . . . . . . 1 . . . . . 2 Piercing Weapon . | . . . . . . . . . . . . . . . . Special Melee Weapon . | . . . . . . . . . . . . . . . . Unidentified Prototypes 3 | . . . . . . . 1 2 . . . . . . . Parts Lost 49 | . . . 7 4 . . . 16 . . 3 2 2 13 2 Power 8 | . . . 1 1 . . . 3 . . . . 1 2 . Propulsion 26 | . . . 4 2 . . . 9 . . 1 1 1 7 1 Utility 8 | . . . . . . . . 3 . . 1 1 . 2 1 Weapon 7 | . . . 2 1 . . . 1 . . 1 . . 2 . Highest Loss Streak 13 | . . . 7 2 . . . 5 . . 3 5 2 13 1 To Critical Strikes . | . . . . . . . . . . . . . . . . Average Backups 16 | 4 7 11 15 22 24 25 23 19 14 14 13 13 8 9 2 Power 1 | . 1 1 1 1 3 3 2 . . 2 2 2 2 1 . Propulsion 3 | 2 4 5 4 4 3 3 3 4 3 2 2 . . 3 1 Utility 6 | . 1 2 5 11 11 11 9 8 6 5 5 8 4 2 . Weapon 4 | . 1 2 4 5 7 8 8 6 3 4 4 3 2 1 1 Tool/Special . | . . . . . . . . . . . . . . . . Unused Backups 39 | . 3 . 13 3 1 . 5 9 1 . 2 . . 2 . Power 4 | . . . 1 . . . 3 . . . . . . . . Propulsion 13 | . 2 . 5 3 . . . 3 . . . . . . . Utility 15 | . . . 7 . 1 . 2 1 1 . 1 . . 2 . Weapon 7 | . 1 . . . . . . 5 . . 1 . . . . Tool/Special . | . . . . . . . . . . . . . . . . Average Slot Usage (%) 86 | . 99 100 86 99 85 88 89 85 94 88 87 67 81 61 51 Engine 10 | . 14 14 9 10 11 11 9 12 7 13 13 13 10 2 4 Treads 5 | . 21 . . . . . . 12 . . . . . . . Wheel 17 | . 6 28 35 44 44 44 35 12 . . . . . . . Hover 8 | . . . . . . . . . 38 40 39 40 34 5 . Flight 1 | . . . . . . . . . . . . . . 9 20 Device 14 | . 14 14 9 . . . 17 26 20 20 19 7 11 8 . Storage 7 | . 14 14 9 11 11 11 9 7 6 6 6 6 5 4 . Hackware 2 | . . . . . . . . . . 6 6 . 15 21 19 Protection 2 | . . . 2 11 11 11 9 . . . . . . . . Energy Gun 1 | . . . 4 9 . . . . . . . . . . . Energy Cannon 4 | . 7 14 5 1 7 11 9 7 1 . . . . . . Ballistic Cannon 3 | . 7 14 7 11 1 . . 1 2 . . . . . . Peak Build Rating 77 | 7 8 8 13 14 31 31 42 49 64 64 68 50 64 73 77 Average Rating 33 | 5 7 8 10 12 21 31 37 36 54 57 58 49 60 50 70 On Entrance 31 | . 7 8 8 13 13 31 31 40 23 64 57 54 49 53 54 Avg Prop Armor Cover (%) 5 | . . . . . . . . 6 . . 5 . . . . Naked Turns . | . . . . . . . . . . . . . . . . Heaviest Build 128 | 14 92 92 98 96 112 112 119 128 104 55 55 49 55 43 32 Greatest Support 80 | 40 40 32 64 64 64 64 64 80 52 56 68 68 56 44 46 Greatest Overweight (x) 28 | . 2 2 28 1 1 1 2 24 2 1 2 . 1 14 . Average Overweight (x) . | . . 2 . 1 1 1 1 2 1 . . . . . . Largest Inventory Capacity 25 | 8 25 25 25 25 25 25 25 25 25 15 15 15 15 15 5 Average Capacity 20 | 7 11 25 22 25 25 25 25 25 21 15 15 15 15 13 5 Most Carried 25 | 7 10 14 25 25 25 25 25 25 19 15 15 14 12 15 4 Average Carried 16 | 4 7 11 15 22 24 25 23 19 14 14 14 13 8 8 2 Final Capacity 25 | 8 25 25 25 25 25 25 25 25 15 15 15 15 15 5 5 Final Carried 25 | 7 10 14 12 24 25 25 25 17 15 15 14 13 8 4 2 Class Distribution -------------------- 46% | Mutant 31% | Scavenger-Mutant 10% | Sprinter 7% | Hacker-Sprinter 3% | Hacker-Mutant Dominant Class ---------------- Mutant | -10/Materials Mutant | -10/Mines Mutant | -9/Materials Mutant | -9/Mines Mutant | -9/Exiles Mutant | -8/Mines Mutant | -8/Materials Scavenger-Mutant | -7/Factory Mutant | -6/Factory Sprinter | -6/Lower Caves Sprinter | -6/Zion Sprinter | -5/Proximity Caves Hacker-Sprinter | -5/Factory Hacker-Mutant | -4/Factory Hacker-Sprinter | -4/Extension Resources | -11 -10 -10 -9 -9 -9 -8 -8 -7 -6 -6 -6 -5 -5 -4 -4 ----------- Run | Yrd Mat Min Mat Min Exi Min Mat Fac Fac Low Zio Pro Fac Fac Ext Matter Collected 2070 | 264 251 13 136 553 . . 140 291 25 . 169 15 . . 213 Remotely . | . . . . . . . . . . . . . . . . Salvage Created 4280 | 43 231 20 587 463 . . 760 1972 25 . 35 . . 15 129 Parts 166 | 7 14 3 39 24 . . 15 51 . . 7 . . 2 4 Haulers Intercepted 6 | . 1 . 1 . . . 1 3 . . . . . . . Recyclers Shooed 4 | . . . . 2 . . 1 . . . . . . 1 . Parts Field Recycled . | . . . . . . . . . . . . . . . . Retrieved Matter . | . . . . . . . . . . . . . . . . Parts Self-Destructed . | . . . . . . . . . . . . . . . . Prevented . | . . . . . . . . . . . . . . . . Parts Restored . | . . . . . . . . . . . . . . . . Kills | -11 -10 -10 -9 -9 -9 -8 -8 -7 -6 -6 -6 -5 -5 -4 -4 ------- Run | Yrd Mat Min Mat Min Exi Min Mat Fac Fac Low Zio Pro Fac Fac Ext Combat Hostiles Destroyed 67 | . 4 . 13 5 . . 13 29 . . 1 . . 1 1 Melee 2 | . . . . . . . . . . . 1 . . . 1 Guns 9 | . . . 5 4 . . . . . . . . . . . Cannons 22 | . 4 . 8 1 . . 2 7 . . . . . . . AOE 16 | . . . . . . . 7 8 . . . . . 1 . Classes Destroyed 15 | 2 5 1 1 . . . 4 2 . . . . . . . Worker 9 | 1 . . . 1 . . . 6 1 . . . . . . Builder 7 | . . 1 1 3 . . . 2 . . . . . . . Tunneler 4 | 1 . . . 2 . . . 1 . . . . . . . Hauler 6 | . 1 . 1 . . . 1 3 . . . . . . . Recycler 8 | . 1 . 1 2 . . . 3 . . . . . . 1 Mechanic 1 | . . . . . . . 1 . . . . . . . . Operator 2 | . 1 . . . . . . 1 . . . . . . . Watcher 2 | . . . . . . . 1 1 . . . . . . . Swarmer 16 | . 2 . 3 1 . . 3 5 . . . . . 1 1 Grunt 33 | . 2 . 7 4 . . 4 16 . . . . . . . Brawler 5 | . . . . . . . 3 2 . . . . . . . Duelist 3 | . . . . . . . 1 2 . . . . . . . Protector 2 | . . . . . . . . 2 . . . . . . . Sentry 7 | . . . 3 . . . 2 2 . . . . . . . Programmer 1 | . . . . . . . . 1 . . . . . . . Best Kill Streak 11 | 1 5 1 7 4 . . 8 11 1 . 1 . . 1 2 Combat Bots Only 10 | . 4 . 6 2 . . 7 10 . . 1 . . 1 1 Max Kills in Single Turn 8 | 1 1 1 1 1 . . 3 8 1 . 1 . . 1 1 Gunslinging . | . . . . . . . . . . . . . . . . Exploded 3 | . . . . . . . 2 3 . . . . . 1 . Melee 1 | . . . . . . . . . . . 1 . . . 1 Uniques/NPCs Destroyed 1 | . . . . . . . . . . . 1 . . . . Imprinter (-6/Zion) Combat | -11 -10 -10 -9 -9 -9 -8 -8 -7 -6 -6 -6 -5 -5 -4 -4 -------- Run | Yrd Mat Min Mat Min Exi Min Mat Fac Fac Low Zio Pro Fac Fac Ext Hostile Shots Fired 516 | . 26 . 84 16 . . 14 78 . 4 109 10 9 120 46 Missed 191 | . 9 . 17 3 . . 3 24 . . 61 5 3 39 27 Hits 325 | . 17 . 67 13 . . 11 54 . 4 48 5 6 81 19 Melee 8 | . . . . . . . . 6 . . 1 . 1 . . Projectile 317 | . 17 . 67 13 . . 11 48 . 4 47 5 5 81 19 AOE 2 | . . . . . . . . . . . 2 . . . . Critical Strikes 15 | . . . 1 1 . . . 5 . . 2 . . 5 1 Part Disruptions 4 | . . . . . . . . . . . 4 . . . . Damage Taken 6385 | . 163 7 809 212 . . 213 1625 . 56 716 101 137 1907 439 Core 2071 | . 37 . 157 10 . . 16 357 . 16 281 27 . 1034 136 Absorbed by Shields 30 | . . . . . . . . 24 . . . . . . 6 Core Remaining (%) 78 | 100 . 85 . . . 58 97 49 . . . 61 100 . . Volleys Fired 151 | 11 16 2 40 18 . . 12 49 . . . . . 3 . Largest 2 | 2 2 2 2 2 . . 1 2 . . . . . 1 . Hottest 250 | 40 90 90 112 86 . . 250 250 . . . . . 36 . Shots Fired 250 | 22 32 4 77 36 . . 12 64 . . . . . 3 . Gun 73 | 22 4 . 29 18 . . . . . . . . . . . Cannon 172 | . 28 4 46 18 . . 12 64 . . . . . . . Launcher 5 | . . . 2 . . . . . . . . . . 3 . Special . | . . . . . . . . . . . . . . . . Kinetic 103 | 22 18 2 28 18 . . . 15 . . . . . . . Thermal 142 | . 14 2 47 18 . . 12 49 . . . . . . . Explosive 5 | . . . 2 . . . . . . . . . . 3 . Electromagnetic . | . . . . . . . . . . . . . . . . Robot Hit Streak 14 | 5 7 2 14 3 . . 6 11 . . . . . 1 . Robot Miss Streak 6 | 2 6 1 4 3 . . 4 5 . . . . . 1 . Penetration Max . | . . . . . . . . . . . . . . . . Secondary Targets . | . . . . . . . . . . . . . . . . Shots Hit Robots 172 | 13 17 2 58 17 . . 9 46 1 . 4 . . 2 3 Core Hits 172 | 4 7 1 21 12 . . 25 88 1 . 1 . . 11 1 Critical Kills . | . . . . . . . . . . . . . . . . Critical Parts Destroyed . | . . . . . . . . . . . . . . . . Critical Strikes 6 | . . . 5 . . . . . . . . . . . 1 Burn 3 | . . . 3 . . . . . . . . . . . . Blast 2 | . . . 2 . . . . . . . . . . . . Sever 1 | . . . . . . . . . . . . . . . 1 Melee Attacks 39 | . . . . . . . . . 8 1 6 . 4 16 4 Impact 25 | . . . . . . . . . 5 . . . 4 16 . Slashing 14 | . . . . . . . . . 3 1 6 . . . 4 Piercing . | . . . . . . . . . . . . . . . . Sneak Attacks 4 | . . . . . . . . . 1 . . . . 1 2 Combat Hostiles 1 | . . . . . . . . . . . . . . . 1 Follow-up Attacks . | . . . . . . . . . . . . . . . . Damage Inflicted 7671 | 144 311 51 1006 443 . . 1032 3296 103 . 260 . . 824 201 Guns 654 | 144 . . 363 147 . . . . . . . . . . . Cannons 2278 | . 311 36 603 143 . . 160 1025 . . . . . . . Explosions 3866 | . . . 20 . . . 872 2267 . . . . . 707 . Melee 673 | . . . . . . . . . 103 . 252 . . 117 201 Ramming 200 | . . 15 20 153 . . . 4 . . 8 . . . . Kinetic 1007 | 144 146 18 368 143 . . . 188 . . . . . . . Thermal 5064 | . 165 18 598 147 . . 1032 3104 . . . . . . . Explosive 727 | . . . 20 . . . . . . . . . . 707 . Electromagnetic . | . . . . . . . . . . . . . . . . Impact 117 | . . . . . . . . . . . . . . 117 . Slashing 556 | . . . . . . . . . 103 . 252 . . . 201 Piercing . | . . . . . . . . . . . . . . . . Highest Corruption 7 | . . 2 . 6 6 6 . . . . 2 2 . 7 7 Average Corruption 5 | . . 2 . 5 6 6 . . . . 1 2 . 7 7 Corruption Purged . | . . . . . . . . . . . . . . . . Corruption Blocked . | . . . . . . . . . . . . . . . . Effects 22 | . . . . 5 6 1 . . . . . 1 . 3 6 Message Errors 2 | . . . . . . . . . . . . 1 . . 1 Matter Fused 4 | . . . . . 1 1 . . . . . . . . 2 Heat Flow Errors 6 | . . . . 1 1 . . . . . . . . 1 3 Energy Discharges 2 | . . . . . 2 . . . . . . . . . . Parts Rejected 1 | . . . . . . . . . . . . . . 1 . Parts Fused 1 | . . . . 1 . . . . . . . . . . . Data Loss (minor) 3 | . . . . 2 1 . . . . . . . . . . Data Loss (major) 3 | . . . . 1 1 . . . . . . . . 1 . Overload Shots . | . . . . . . . . . . . . . . . . Overflow Damage 296 | . . . 18 73 . . . 79 . . 57 . . 24 45 Projectiles 18 | . . . 18 . . . . . . . . . . . . Explosions 103 | . . . . . . . . 79 . . . . . 24 . Melee 175 | . . . . 73 . . . . . . 57 . . . 45 Knockbacks 4 | . 3 . 1 . . . . . . . . . . . . Impact . | . . . . . . . . . . . . . . . . Kinetic 4 | . 3 . 1 . . . . . . . . . . . . Secondary . | . . . . . . . . . . . . . . . . Self-Inflicted Damage 811 | . . 7 10 76 . . 70 623 . . 4 . . 21 . Shots 47 | . . . . . . . 10 36 . . . . . 1 . Rammed 7 | . . 2 1 3 . . . . . . 1 . . . . Targets Rammed 8 | . . 2 1 3 . . . 1 . . 1 . . . . Kicked . | . . . . . . . . . . . . . . . . Crushed 1 | . . . . . . . . 1 . . . . . . . Highest Temperature 639 | . 318 30 296 137 176 . 522 639 . . . . . 125 169 Average Temperature 116 | . 119 17 91 35 95 . 223 177 . . . . . 40 78 Received Heat Transfer 1590 | . 48 . 381 66 . . 54 414 . . 85 36 9 450 47 Effects 5 | . . . . . . . 3 2 . . . . . . . Shutdowns 1 | . . . . . . . 1 . . . . . . . . Short Circuit 3 | . . . . . . . 2 1 . . . . . . . Damage (minor) 1 | . . . . . . . . 1 . . . . . . . Siege Activations . | . . . . . . . . . . . . . . . . Martial Activations . | . . . . . . . . . . . . . . . . Shielding Activations . | . . . . . . . . . . . . . . . . Robots Disrupted . | . . . . . . . . . . . . . . . . Combat Hostiles . | . . . . . . . . . . . . . . . . Robots Corrupted 2 | . . . . 2 . . . . . . . . . . . Combat Hostiles . | . . . . . . . . . . . . . . . . Parts Fried 7 | . . . . 7 . . . . . . . . . . . Impact Corruptions 4 | . . . . 4 . . . . . . . . . . . Robots Melted 19 | . . . . . . . 4 15 . . . . . . . Combat Hostiles 18 | . . . . . . . 4 14 . . . . . . . Parts Melted 94 | . . . 4 . . . 21 69 . . . . . . . Heat Transferred 21696 | . 333 37 1591 370 . . 5760 13605 . . . . . . . Parts Sabotaged . | . . . . . . . . . . . . . . . . Parts Stolen . | . . . . . . . . . . . . . . . . Parts Stripped . | . . . . . . . . . . . . . . . . Power Chain Reactions . | . . . . . . . . . . . . . . . . Alert | -11 -10 -10 -9 -9 -9 -8 -8 -7 -6 -6 -6 -5 -5 -4 -4 ------- Run | Yrd Mat Min Mat Min Exi Min Mat Fac Fac Low Zio Pro Fac Fac Ext Maximum Alert Level 2 | . . . . . . . 2 2 1 . . . . . . Low Security (%) 59 | 100 100 100 100 100 . 100 51 8 18 . . . 100 100 100 Level 1 18 | . . . . . . . 23 32 81 . . . . . . Level 2 21 | . . . . . . . 25 58 . . . . . . . Level 3 . | . . . . . . . . . . . . . . . . Level 4 . | . . . . . . . . . . . . . . . . Level 5 . | . . . . . . . . . . . . . . . . High Security . | . . . . . . . . . . . . . . . . Max Security . | . . . . . . . . . . . . . . . . Peak Influence 698 | 5 77 32 184 114 . . 685 698 308 . . . 39 91 55 Initial 308 | . . 22 4 54 . . . 288 308 . . . 28 . 34 Average 212 | . 14 21 95 42 . . 258 454 236 . . . 26 11 12 Influence Increases 3152 | 10 119 20 424 324 . . 745 1043 25 45 . 75 27 163 132 Destroy 0b10 Robot/C 1540 | . 80 . 260 220 . . 340 540 . . . . . 20 80 Destroy 0b10 Robot/NC 205 | 10 15 5 15 40 . . 15 95 5 . . . . . 5 Destroy Leader 286 | . 12 . 62 40 . . 64 98 . . . . . . 10 Allied During Kill 73 | . . . . 24 . . 38 4 . . . . . . 7 Successful Hack 60 | . 12 . 10 . . . . 9 . . . . 21 8 . Disable Machine 225 | . . 15 30 . . . 60 120 . . . . . . . Anti-Garrison Action 300 | . . . . . . . 150 150 . . . . . . . Destroy Structure 178 | . . . 17 . . . 63 27 5 . . . 6 60 . Partial Spotted 15 | . . . . . . . . . 15 . . . . . . Lose Combat Pursuer 270 | . . . 30 . . . 15 . . 45 . 75 . 75 30 Influence Decreases 3130 | 10 62 65 296 366 98 . 110 1049 481 95 123 30 72 92 181 Entered New Map 1137 | . . 35 8 86 98 . . 347 321 65 123 . 17 . 37 Time Decay 1559 | 10 62 30 218 240 . . 90 542 160 30 . 30 40 38 69 Lost Part 359 | . . . 70 40 . . . 160 . . . . 15 54 20 Lost Ally 75 | . . . . . . . 20 . . . . . . . 55 Squads Dispatched 17 | . 1 . 1 . . . 4 8 1 . . . . 2 . Investigation 3 | . . . 1 . . . 1 1 . . . . . . . Extermination 2 | . . . . . . . . 2 . . . . . . . Reinforcement 7 | . 1 . . . . . 1 2 1 . . . . 2 . Assault 4 | . . . . . . . 2 2 . . . . . . . Garrison 1 | . . . . . . . . 1 . . . . . . . Intercept . | . . . . . . . . . . . . . . . . Searches Triggered . | . . . . . . . . . . . . . . . . Construction Impeded 2 | . . . . . . . 1 1 . . . . . . . Haulers Reinforced 1 | . . . . . . . . . . . . . . 1 . Active Scanning Responses . | . . . . . . . . . . . . . . . . Cargo Convoy Interrupts . | . . . . . . . . . . . . . . . . Stealth | -11 -10 -10 -9 -9 -9 -8 -8 -7 -6 -6 -6 -5 -5 -4 -4 --------- Run | Yrd Mat Min Mat Min Exi Min Mat Fac Fac Low Zio Pro Fac Fac Ext Distress Signals 8 | . 2 . 2 . . . 2 2 . . . . . . . Communications Jammed . | . . . . . . . . . . . . . . . . Distress Signals . | . . . . . . . . . . . . . . . . Times Spotted 175 | . 8 . 19 9 . . 21 34 1 3 30 12 6 21 11 Peak Tracking Total 25 | . 7 . 7 3 . . 6 10 1 3 25 7 5 13 7 Tactical Retreats 11 | . . . 2 . . . 1 . . 1 2 2 . 1 2 Traps | -11 -10 -10 -9 -9 -9 -8 -8 -7 -6 -6 -6 -5 -5 -4 -4 ------- Run | Yrd Mat Min Mat Min Exi Min Mat Fac Fac Low Zio Pro Fac Fac Ext Traps Triggered 7 | . . . 1 . . . . 3 . . . . 1 . 2 Indirectly . | . . . . . . . . . . . . . . . . Trap Hack Attempts . | . . . . . . . . . . . . . . . . Triggered . | . . . . . . . . . . . . . . . . Disarmed . | . . . . . . . . . . . . . . . . Reprogrammed . | . . . . . . . . . . . . . . . . Reused . | . . . . . . . . . . . . . . . . Traps Extracted . | . . . . . . . . . . . . . . . . Installed . | . . . . . . . . . . . . . . . . Triggered . | . . . . . . . . . . . . . . . . Machines | -11 -10 -10 -9 -9 -9 -8 -8 -7 -6 -6 -6 -5 -5 -4 -4 ---------- Run | Yrd Mat Min Mat Min Exi Min Mat Fac Fac Low Zio Pro Fac Fac Ext Machines Disabled 17 | . . 1 2 . . . 5 9 . . . . . . . Max in Single Turn 3 | . . 1 1 . . . 2 3 . . . . . . . Garrison Access 3 | . . . . . . . 1 1 . . . . 1 . . Machines Repaired . | . . . . . . . . . . . . . . . . Machines Dismantled . | . . . . . . . . . . . . . . . . Machines Sabotaged . | . . . . . . . . . . . . . . . . Overloaded Fab Kills . | . . . . . . . . . . . . . . . . Hacking | -11 -10 -10 -9 -9 -9 -8 -8 -7 -6 -6 -6 -5 -5 -4 -4 --------- Run | Yrd Mat Min Mat Min Exi Min Mat Fac Fac Low Zio Pro Fac Fac Ext Machines Accessed 35 | . 1 . 8 . 2 . 2 9 4 . . . 3 3 3 Terminals 22 | . 1 . 6 . . . 2 3 3 . . . 2 2 3 Fabricators 2 | . . . . . . . . 1 . . . . . 1 . Repair Stations . | . . . . . . . . . . . . . . . . Recycling Units 5 | . . . . . . . . 4 1 . . . . . . Scanalyzers 3 | . . . 2 . . . . 1 . . . . . . . Garrison Access 1 | . . . . . . . . . . . . . 1 . . Total Hacks 72 | . 5 . 15 . 5 . 4 18 5 . . . 5 5 10 Successful 31 | . 4 . 4 . 5 . . 3 2 . . . 4 4 5 Failed 41 | . 1 . 11 . . . 4 15 3 . . . 1 1 5 Catastrophic 14 | . . . 4 . . . 1 7 2 . . . . . . Database Lockouts . | . . . . . . . . . . . . . . . . Manual 32 | . 4 . 10 . 1 . 3 4 2 . 2 . 1 . 5 Terminals 48 | . 5 . 11 . . . 4 6 4 . . . 4 4 10 Fabricators 2 | . . . . . . . . 1 . . . . . 1 . Repair Stations . | . . . . . . . . . . . . . . . . Recycling Units 10 | . . . . . . . . 9 1 . . . . . . Scanalyzers 6 | . . . 4 . . . . 2 . . . . . . . Garrison Access 1 | . . . . . . . . . . . . . 1 . . Terminal Hacks 23 | . 4 . 1 . 5 . . 1 1 . . . 3 3 5 Record 9 | . . . . . 4 . . . . . . . 2 1 2 Robot Analysis 2 | . 2 . . . . . . . . . . . . . . Prototype ID Bank 1 | . 1 . . . . . . . . . . . . . . Open Door 2 | . . . . . . . . . . . . . . 1 1 Open DSF 1 | . . . . . . . . . 1 . . . . . . Level Access Points 3 | . . . . . . . . 1 . . . . 1 . 1 Branch Access Points 3 | . 1 . 1 . . . . . . . . . . 1 . Zone Layout 1 | . . . . . . . . . . . . . . . 1 Proto ID Catalog 1 | . . . . . 1 . . . . . . . . . . Fabricator Hacks 2 | . . . . . . . . 1 . . . . . 1 . Network Status 2 | . . . . . . . . 1 . . . . . 1 . Repair Station Hacks . | . . . . . . . . . . . . . . . . Recycling Unit Hacks 1 | . . . . . . . . . 1 . . . . . . Retrieve Components 1 | . . . . . . . . . 1 . . . . . . Scanalyzer 4 | . . . 3 . . . . 1 . . . . . . . Retrieve Study 4 | . . . 3 . . . . 1 . . . . . . . Garrison Access Hacks 1 | . . . . . . . . . . . . . 1 . . Seal Access 1 | . . . . . . . . . . . . . 1 . . Unauthorized Hacks . | . . . . . . . . . . . . . . . . Terminals . | . . . . . . . . . . . . . . . . Fabricators . | . . . . . . . . . . . . . . . . Repair Stations . | . . . . . . . . . . . . . . . . Recycling Units . | . . . . . . . . . . . . . . . . Scanalyzers . | . . . . . . . . . . . . . . . . Garrison Access . | . . . . . . . . . . . . . . . . Data Cores Recovered 1 | . 1 . . . . . . . . . . . . . . Used . | . . . . . . . . . . . . . . . . Hacking Detections 23 | . 1 . 6 . . . 2 8 2 . . . 1 1 2 Full Trace Events 2 | . . . 1 . . . 1 . . . . . . . . Feedback Events . | . . . . . . . . . . . . . . . . Feedback Blocked . | . . . . . . . . . . . . . . . . Robot Schematics Acquired . | . . . . . . . . . . . . . . . . Robots Built . | . . . . . . . . . . . . . . . . Authchips . | . . . . . . . . . . . . . . . . Time . | . . . . . . . . . . . . . . . . Total Robot Build Rating . | . . . . . . . . . . . . . . . . Part Schematics Acquired . | . . . . . . . . . . . . . . . . Parts Built . | . . . . . . . . . . . . . . . . Authchips . | . . . . . . . . . . . . . . . . Time . | . . . . . . . . . . . . . . . . Total Part Build Rating . | . . . . . . . . . . . . . . . . Part Studies Acquired 4 | . . . 3 . . . . 1 . . . . . . . Parts Repaired . | . . . . . . . . . . . . . . . . Time . | . . . . . . . . . . . . . . . . Parts Recycled . | . . . . . . . . . . . . . . . . Recycled Matter . | . . . . . . . . . . . . . . . . Retrieved Matter . | . . . . . . . . . . . . . . . . Retrieved Components 2 | . . . . . . . . . 2 . . . . . . Parts Scanalyzed . | . . . . . . . . . . . . . . . . Part Schematics Acquired . | . . . . . . . . . . . . . . . . Parts Damaged . | . . . . . . . . . . . . . . . . Bothacking | -11 -10 -10 -9 -9 -9 -8 -8 -7 -6 -6 -6 -5 -5 -4 -4 ------------ Run | Yrd Mat Min Mat Min Exi Min Mat Fac Fac Low Zio Pro Fac Fac Ext Used RIF Installer . | . . . . . . . . . . . . . . . . Robots Hacked . | . . . . . . . . . . . . . . . . Non-combat . | . . . . . . . . . . . . . . . . Combat . | . . . . . . . . . . . . . . . . Robot Hacks Applied . | . . . . . . . . . . . . . . . . Relay Couplers Released 4 | . . . . . . . 1 3 . . . . . . . Machine Destruction 4 | . . . . . . . 1 3 . . . . . . . Fabnet Peak Effective % . | . . . . . . . . . . . . . . . . Robots Rewired 3 | . . . . . . . . . . . . . . . 3 Allies Hacked . | . . . . . . . . . . . . . . . . Hacks Repelled . | . . . . . . . . . . . . . . . . Allies | -11 -10 -10 -9 -9 -9 -8 -8 -7 -6 -6 -6 -5 -5 -4 -4 -------- Run | Yrd Mat Min Mat Min Exi Min Mat Fac Fac Low Zio Pro Fac Fac Ext Total Allies 7 | . . . . 3 . . . . . . . . . . 4 Largest Group 3 | . . . . 3 2 2 2 1 . . . . . . 2 Highest-Rated Group 76 | . . . . 40 32 32 32 13 . . . . . . 76 Highest-Rated Ally 46 | . . . . 16 16 16 16 13 . . . . . . 46 Total Orders . | . . . . . . . . . . . . . . . . Ally Attacks 55 | . . . . 22 . . 21 . . . . . . . 12 Total Damage 898 | . . . . 256 . . 214 . . . . . . . 428 Kills 13 | . . . . 6 . . 4 . . . . . . . 3 Allies Corrupted . | . . . . . . . . . . . . . . . . Allies Melted . | . . . . . . . . . . . . . . . . Intel | -11 -10 -10 -9 -9 -9 -8 -8 -7 -6 -6 -6 -5 -5 -4 -4 ------- Run | Yrd Mat Min Mat Min Exi Min Mat Fac Fac Low Zio Pro Fac Fac Ext Active Infowar (turns) 2440 | 60 302 68 423 . . . . 426 337 73 414 25 87 225 . Structural 1572 | . . . 58 . . . . 426 337 73 366 . 87 225 . Seismic 1336 | 60 302 68 396 . . . . . . 71 414 25 . . . Robot Analysis Total 2 | . 2 . . . . . . . . . . . . . . Derelict Logs Recovered 4 | . . . . 1 . . . . . . 1 2 . . . Drone Launches . | . . . . . . . . . . . . . . . . Drone Recoveries . | . . . . . . . . . . . . . . . . Exploration | -11 -10 -10 -9 -9 -9 -8 -8 -7 -6 -6 -6 -5 -5 -4 -4 ------------- Run | Yrd Mat Min Mat Min Exi Min Mat Fac Fac Low Zio Pro Fac Fac Ext Turns Passed 5252 | 137 302 68 549 638 244 16 242 1543 337 73 414 112 87 277 213 Spaces Moved 5037 | 55 154 43 362 525 214 12 165 767 302 193 1043 344 211 279 368 Core 46 | 1 . . 1 . . . . . . . . . . 44 . Treads 453 | 54 126 . . . . . . 273 . . . . . . . Legs . | . . . . . . . . . . . . . . . . Wheels 1802 | . 28 43 324 525 214 12 165 491 . . . . . . . Hover 2214 | . . . . . . . . . 302 193 1043 344 211 121 . Flight 522 | . . . 37 . . . . 3 . . . . . 114 368 Fastest Speed 16 | 50 130 130 40 105 105 105 105 110 33 28 16 16 24 30 32 Average Speed 82 | 158 154 130 98 105 105 105 109 170 94 33 31 31 32 66 32 Slowest Speed 1610 | 160 160 130 1450 105 105 105 115 1610 152 89 157 33 89 750 34 Overloaded Moves 273 | . . . . . . . . . 2 21 203 21 15 11 . Propulsion Burnouts . | . . . . . . . . . . . . . . . . Robots Hopped 8 | . . . . . . . . . . . . . . 2 6 Potential Cave-ins . | . . . . . . . . . . . . . . . . Cave-ins Triggered 1 | . . . . . . . . . . . . . . 1 . Exploration Rate (%) 31 | 3 32 7 37 69 60 8 17 24 11 39 86 56 8 8 38 Regions Visited 15 Branch Regions 8 Pre-discovered Areas 2 | . . . . . 1 . . . . . 1 . . . . Known Exits Taken 5 | . 1 . 1 . . . . 1 . . . . 1 1 . Unknown Exits Taken 10 | 1 . 1 . 1 1 1 1 . 1 1 1 1 . . . Scrap Searched 8 | . . 1 . 1 . . . . . . 5 1 . . . Spaces Dug 19 | . . . . . . . . . 5 1 . . 3 10 . Terrain Destroyed 169 | . . . 15 . . . 83 26 5 1 . . 3 36 . Melee 19 | . . . . . . . . . 5 1 . . 3 10 . Projectile 6 | . . . . . . . 6 . . . . . . . . AOE 144 | . . . 15 . . . 77 26 . . . . . 26 . Terrain Rammed . | . . . . . . . . . . . . . . . . Walls Destroyed . | . . . . . . . . . . . . . . . . Machines Disabled . | . . . . . . . . . . . . . . . . Actions | -11 -10 -10 -9 -9 -9 -8 -8 -7 -6 -6 -6 -5 -5 -4 -4 --------- Run | Yrd Mat Min Mat Min Exi Min Mat Fac Fac Low Zio Pro Fac Fac Ext Total 5811 | 82 190 50 481 576 234 15 221 946 344 202 1114 345 222 340 449 Wait 244 | 3 . . 24 6 16 4 6 53 . 1 54 . 1 11 65 Move 5009 | 54 153 42 361 524 213 11 164 766 301 192 1042 343 210 274 359 Hop 5 | . . . . . . . . . . . . . . 2 3 Pick Up 92 | 7 7 4 22 18 1 . 10 15 4 . 4 . . . . Fast Attach 54 | 7 2 . 7 1 1 . 3 14 3 1 1 . . 11 3 Attach 71 | . 2 . 12 3 . . 6 17 9 1 2 1 6 10 2 Detach 52 | . 2 . 6 . 1 . 7 10 9 3 1 1 1 11 . Swap 8 | . 1 . 1 . . . 2 1 3 . . . . . . Drop 65 | . 7 . 7 3 2 . 11 20 7 3 3 . . 2 . Fire 151 | 11 16 2 40 18 . . 12 49 . . . . . 3 . Melee 39 | . . . . . . . . . 8 1 6 . 4 16 4 Ram 7 | . . 2 1 3 . . . . . . 1 . . . . Kick . | . . . . . . . . . . . . . . . . Crush 1 | . . . . . . . . 1 . . . . . . . Escape Stasis 6 | . . . . . . . . . . . . . . . 6 Rewire 7 | . . . . . . . . . . . . . . . 7 Trap . | . . . . . . . . . . . . . . . . Miscellaneous . | . . . . . . . . . . . . . . . . Route ------- -11/Scrapyard -10/Materials -10/Mines -9/Materials (discovered 2 exits: *Min x2) -9/Mines (discovered 3 exits: *Mat x2 / *Exi) -9/Exiles (discovered 2 exits: [*Min x2]) -8/Mines -8/Materials -7/Factory (discovered 4 exits: *Fac x4) -6/Factory -6/Lower Caves -6/Zion -5/Proximity Caves -5/Factory (discovered 4 exits: *Fac x4) -4/Factory (discovered 5 exits: Upp x2 / *Ext x2 / Arm) -4/Extension (discovered 2 exits: Res x2) History --------- Turn | Location | Event 36 | -11/Scrapyard | Discovered new exit (range 15) 138 | -11/Scrapyard | Entered Materials 224 | -10/Materials | Identified exit to Mines 305 | -10/Materials | Build established: Mutant 440 | -10/Materials | Entered Mines 446 | -10/Mines | Discovered new exit (range 12) 508 | -10/Mines | Entered Materials 508 | -9/Materials | Evolved 2 slots: Propulsion x2 759 | -9/Materials | Identified exit to Mines 843 | -9/Materials | Lost 7 parts (1p4n2w) 1057 | -9/Materials | Entered Mines 1065 | -9/Mines | Met a Derelict bent on vengeance 1066 | -9/Mines | Discovered new exit (range 7) 1192 | -9/Mines | Assisted by bots powering up and referring to "LRC-V3" 1278 | -9/Mines | Discovered new exit (range 11) 1622 | -9/Mines | Learned 4 Materials zone layouts 1685 | -9/Mines | Deemed a non-threat by the Exiles lab entrance 1686 | -9/Mines | Discovered new exit (range 5) 1695 | -9/Mines | Entered Exiles 1695 | -9/Exiles | Accompanied by 2 allies 1709 | -9/Exiles | Discovered new exit (range 15) 1722 | -9/Exiles | Met 8R-AWN 1744 | -9/Exiles | Met EX-HEX 1773 | -9/Exiles | Met EX-BIN 1785 | -9/Exiles | Aligned with FarCom system 1786 | -9/Exiles | Given EX-Vault access code 1811 | -9/Exiles | Opened EX-Vault 1817 | -9/Exiles | Found Firepult 1839 | -9/Exiles | Warned to stay clear of 0b10 Research branches 1856 | -9/Exiles | Exiles lab attacked by MAIN.C 1879 | -9/Exiles | Learned location of Zion (-6) 1911 | -9/Exiles | Discovered new exit (range 14) 1939 | -9/Exiles | Left Exiles lab with Firepult 1939 | -9/Exiles | Entered Mines 1939 | -8/Mines | Accompanied by 2 allies 1946 | -8/Mines | Discovered new exit (range 8) 1955 | -8/Mines | Entered Materials 1955 | -8/Materials | Accompanied by 2 allies 1955 | -8/Materials | Evolved 2 slots: Utility x2 2119 | -8/Materials | Destroyed 7 combat bots 2161 | -8/Materials | Discovered new exit (range 16) 2197 | -8/Materials | Entered Factory 2197 | -7/Factory | Accompanied by 1 ally 2197 | -7/Factory | Evolved 2 slots: Power x1, Utility x1 2382 | -7/Factory | Build established: Scavenger-Mutant 2828 | -7/Factory | Garrison activated, responded to threat 3022 | -7/Factory | Destroyed 10 combat bots 3027 | -7/Factory | Lost 5 parts (1p3n1u) 3359 | -7/Factory | Core integrity fell below 50% 3385 | -7/Factory | Lost 5 parts (1p1n2u1w) 3499 | -7/Factory | Identified exit to Factory 3740 | -7/Factory | Entered another Factory area 3740 | -6/Factory | Evolved 2 slots: Propulsion x2 4001 | -6/Factory | Discovered new exit (range 5) 4036 | -6/Factory | Build established: Mutant 4077 | -6/Factory | Entered Lower Caves 4148 | -6/Lower Caves | A Derelict revealed a hidden shortcut to a safe place 4150 | -6/Lower Caves | Entered Zion 4343 | -6/Zion | Learned Factory security intel 4348 | -6/Zion | Learned location of Warlord (-4) 4351 | -6/Zion | Received a visual enhancement algorithm 4352 | -6/Zion | Ran a visual enhancement algorithm 4356 | -6/Zion | Ran a visual enhancement algorithm 4363 | -6/Zion | Build established: Sprinter 4368 | -6/Zion | Learned Factory emergency access door positions 4463 | -6/Zion | Rebuked by Imprinter 4468 | -6/Zion | Attempted to imprint without authorization 4468 | -6/Zion | Attacked by Zionites 4508 | -6/Zion | Destroyed Imprinter 4509 | -6/Zion | Extracted access codes from Imprinter's data core 4530 | -6/Zion | Spotted O2-0P7(B) 4530 | -6/Zion | Spotted V5-YK5(B) 4533 | -6/Zion | ME-RLN came to Zion's defense 4559 | -6/Zion | Discovered new exit (range 9) 4564 | -6/Zion | Entered Proximity Caves 4566 | -5/Proximity Caves | Attracted the attention of an 0b10 checkpoint 4569 | -5/Proximity Caves | Spotted B-75 Beast 4597 | -5/Proximity Caves | Learned Factory garrison access intel 4620 | -5/Proximity Caves | Lost 5 parts (2n2u1w) 4672 | -5/Proximity Caves | Discovered new exit (range 13) 4676 | -5/Proximity Caves | Entered Factory 4676 | -5/Factory | Evolved 2 slots: Propulsion x1, Utility x1 4679 | -5/Factory | Loaded intel: 4 garrison access locations 4703 | -5/Factory | Identified exit to Factory 4763 | -5/Factory | Entered another Factory area 4763 | -4/Factory | Evolved 2 slots: Utility x2 4772 | -4/Factory | Identified exit to Upper Caves 4772 | -4/Factory | Identified exit to Extension 4772 | -4/Factory | Identified exit to Armory 4958 | -4/Factory | Crushed by falling debris 5009 | -4/Factory | Core integrity fell below 50% 5015 | -4/Factory | Core integrity fell below 20% 5040 | -4/Factory | Entered Extension 5043 | -4/Extension | Lost 13 parts (2p7n2u2w) 5091 | -4/Extension | Identified exit to Research 5108 | -4/Extension | Rescued a captive Derelict 5246 | -4/Extension | Spotted B-86 Titan 5247 | -4/Extension | Spotted B-86 Titan 5253 | -4/Extension | Destroyed by B-86 Titan with Hardcell Cannon Last Messages --------------- 05239_ Y-64 Sentinel Imp. Medium Armor Plating severed. 05239_ R-10 Processor collects Autogun. 05239_ 1B-J7X(l) destroyed. 05239_ Penetrated by Slug. 05241_ Slug penetrates Wall. 05242_ Penetrated by Slug. 05242_ R-10 Processor collects Com. Wheel+. 05243_ Sneak attack on S-27 Virus. 05243_ S-27 Virus destroyed. 05245_ Acquired 20 matter. 05246_ Machine disabled. 05249_ Door Terminal disabled. 05249_ Penetrated by Slug. 05250_ Slug penetrates Wall. 05251_ Knocked back. 05251_ Penetrated by Slug. 05251_ Field Propulsion Drive destroyed. 05251_ Slug penetrates Wall. 05252_ Slug penetrates Sealed Heavy Doors. Map ----- +----------------------------------------------------+ | #??# *% #????????????????????????????? | | ####??# [%% #????????????????????????????? | | ??????###" "# #????????????????????????????? | | ????????#"""# #????????????????????????????? | | ????????##### #????????????????????????????? | | ????????????# #????????????????????????????? | | ???????????##+##+## #????????????????????????????? | | ???????????#%/!== # #????????????????????????????? | | ???????????#%=== # #????????????????????????????? | | ???????????#[%=! Y #?????????h??????????????????? | | ???????????#!*=! #Y#????????????????????????????? | | ???????????#= # #????????????????????????????? | | ???????????# # #????????????????????????????? | | ???????????#""##### #?????????h#?????????????????? | | ???????????## ????# ########?? #?????????????????? | | ????????????##??### ##; #; ### ###???????????????? | | ???????????????##"" ""Y Y "" ""#???????????????? | | ???????????????#; " " #???????????????? | | ????????????????# u #???????????????? | | ????????????????# #???????????????? | | ?????????######## ######??????????? | | ???????? R ?????????? | | ???????? ?????????? | | ???????? % ????????? | | ???????? ????????? | | ???????? @ ????????? | | ?????????######## BB BB #####???????????? | | ????????????????# BB BB #???????????????? | | ???????????????## #???????????????? | | ???????????????#; % #???????????????? | | ???????????????## #???????????????? | | ????????????????###### #"""#######???????????????? | | ?????????????????????###?